Cogmind - Beta 15 @@@ ROGUE MODE // 2025.06.27 @ 02:02:16 Player: Cracklepappy Result: Self-destructed Performance ------------- Evolutions (2) 1000 Regions Visited (7) 1400 Robots Destroyed (177) 885 Value Destroyed (6055) 6055 Prototype IDs (14) 280 Alien Tech Used (0) 0 Bonus (1949) 1949 TOTAL SCORE: 11569 Bonus ------- High Alert Combat Kills 655 Follower Combat Kills 14 Entered Garrisons 400 Used RIF Installer 1000 Friendly Fire -120 Cogmind --------- Core Integrity 130/550 Matter 22/300 Energy 275/275 System Corruption 5% Temperature Warm (100) Movement Rolling (225) Ox9 Location -8/Garrison Parts ------- > --- POWER (1) -------- Deuterium Engine > --- PROPULSION (3) --- Light Treads Armored Treads Armored Wheel > --- UTILITY (3) ------ Improved Heat Sink Huge Storage Unit Hardened Medium Armor Plating > --- WEAPON (4) ------- Gauss Rifle Advanced Assault Cannon Advanced Assault Cannon > --- INVENTORY (25) --- Light Treads Cryofiber Web Heat Sink High-capacity Matter Pod (0) Experimental Sensor Array Seismic Detector Recoil Stabilizer Hardened Medium Armor Plating Relay Coupler [NC] (38) Relay Coupler [Cutter] (22) Relay Coupler [Grunt] (22) Relay Coupler [Heavy] (16) High-powered Tractor Beam Heavy Particle Gun Heavy Particle Gun Advanced Beam Rifle Advanced Beam Rifle Gatling Laser Flak Cannon Flak Cannon Flak Cannon Rocket Launcher Remote Datajack Axe Peak State ------------ > --- POWER ------------ Nuclear Core > --- PROPULSION ------- Light Treads Improved Treads Armored Treads > --- UTILITY ---------- Huge Storage Unit Hacking Suite Relay Coupler [Hunter] > --- WEAPON ----------- Advanced Assault Cannon Advanced Assault Cannon Remote Datajack Axe > --- INVENTORY -------- Deuterium Engine Armored Wheel Cryofiber Web Improved Heat Sink High-capacity Matter Pod Experimental Sensor Array Seismic Detector Recoil Stabilizer Hardened Medium Armor Plating Hardened Medium Armor Plating Relay Coupler [NC] Relay Coupler [Grunt] Relay Coupler [Heavy] High-powered Tractor Beam Heavy Particle Gun Heavy Particle Gun Advanced Beam Rifle Advanced Beam Rifle Gatling Laser Minigun Gauss Rifle Flak Cannon Flak Cannon Flak Cannon Rocket Launcher [Rating: 41] Favorites ----------- Power Ion Engine Engine Ion Engine Power Core Nuclear Core Propulsion Light Treads Treads Light Treads Wheel Armored Wheel Flight Unit Improved Flight Unit Utility Huge Storage Unit Device Drone Bay Storage Huge Storage Unit Hackware Hacking Suite Protection Core Shielding Weapon Light Cannon Energy Gun Heavy Particle Gun Energy Cannon Advanced Beam Cannon Ballistic Gun Heavy Assault Rifle Ballistic Cannon Light Cannon Launcher Rocket Launcher Special Weapon Remote Datajack Impact Weapon Hammer Slashing Weapon Axe Build | -11 -10 -10 -9 -9 -9 -8 -8 ------- Run | Yrd Mat Min Mat Sto Gar Mat Gar Slots Evolved 4 | . . . 2 . . 2 . Power . | . . . . . . . . Propulsion 1 | . . . 1 . . . . Utility 1 | . . . . . . 1 . Weapon 2 | . . . 1 . . 1 . Parts Attached 97 | 8 8 2 12 23 13 19 12 Power 12 | 1 1 1 1 3 2 2 1 Engine 11 | 1 1 1 1 3 2 1 1 Core 1 | . . . . . . 1 . Reactor . | . . . . . . . . Propulsion 23 | 2 . . 1 8 2 8 2 Treads 21 | 2 . . 1 7 2 8 1 Leg . | . . . . . . . . Wheel 1 | . . . . . . . 1 Hover . | . . . . . . . . Flight 1 | . . . . 1 . . . Utility 19 | 2 3 . . 5 3 1 5 Device 7 | 1 . . . 3 2 . 1 Storage 5 | 1 2 . . 2 . . . Processor . | . . . . . . . . Hackware 5 | . . . . . 1 1 3 Protection 2 | . 1 . . . . . 1 Artifact . | . . . . . . . . Weapon 43 | 3 4 1 10 7 6 8 4 Energy Gun 8 | 3 . . 3 . . 2 . Energy Cannon 5 | . . . 2 3 . . . Ballistic Gun 13 | . 1 . 2 3 2 4 1 Ballistic Cannon 8 | . 2 . 3 . . 1 2 Launcher 5 | . . 1 . 1 3 . . Special Weapon 2 | . 1 . . . . 1 . Impact Weapon 1 | . . . . . 1 . . Slashing Weapon 1 | . . . . . . . 1 Piercing Weapon . | . . . . . . . . Special Melee Weapon . | . . . . . . . . Unidentified Prototypes 5 | . . . 3 2 . . . Parts Lost 9 | . . 1 . . 1 2 5 Power 3 | . . 1 . . . 1 1 Propulsion 3 | . . . . . . 1 2 Utility 2 | . . . . . 1 . 1 Weapon 1 | . . . . . . . 1 Highest Loss Streak 2 | . . 1 . . 1 2 2 To Critical Strikes . | . . . . . . . . Average Backups 22 | 5 15 20 24 24 24 24 24 Power . | . 1 . . . . . . Propulsion 2 | 3 2 2 1 3 4 3 1 Utility 9 | . 4 5 9 10 11 12 11 Weapon 9 | 1 8 12 12 8 7 7 10 Tool/Special . | . . . . . . . . Unused Backups 47 | . 7 . 4 7 6 4 19 Power 3 | . 1 . . . . 1 1 Propulsion 7 | . 3 . 1 . 1 1 1 Utility 23 | . . . 2 4 4 2 11 Weapon 13 | . 3 . 1 3 . . 6 Tool/Special 1 | . . . . . 1 . . Average Slot Usage (%) 99 | . 99 100 94 99 99 99 99 Engine 10 | . 14 14 11 11 11 8 2 Treads 29 | . 27 28 28 33 33 26 26 Device 6 | . 11 . . 10 9 7 2 Storage 11 | . 14 14 11 11 11 9 9 Hackware 3 | . . . . . . 10 11 Protection 3 | . 2 14 11 . . . 3 Energy Gun 2 | . 3 . . . . 11 3 Energy Cannon 3 | . . . 1 9 6 1 . Ballistic Gun 11 | . 1 . 3 17 24 22 7 Ballistic Cannon 12 | . 22 27 27 6 . . 13 Peak Build Rating 41 | 7 8 10 20 29 31 38 41 Average Rating 22 | 5 7 9 13 25 27 33 38 On Entrance 16 | . 7 8 10 17 27 29 37 Naked Turns . | . . . . . . . . Heaviest Build 117 | 12 92 92 98 104 107 106 117 Greatest Support 63 | 40 40 40 60 63 63 63 63 Greatest Overweight (x) 9 | . 2 2 2 2 1 1 9 Average Overweight (x) 1 | . . 2 1 1 1 1 1 Largest Inventory Capacity 25 | 8 25 25 25 25 25 25 25 Average Capacity 24 | 7 21 25 25 25 25 25 25 Most Carried 25 | 8 19 21 25 25 25 25 25 Average Carried 22 | 5 15 20 24 24 24 24 24 Final Capacity 25 | 8 25 25 25 25 25 25 25 Final Carried 25 | 8 19 21 25 25 24 25 24 Class Distribution -------------------- 29% | Mutant 20% | Scavenger-Gunner 19% | Bothacker-Gunner 11% | Gunner 10% | Tank 5% | Bothacker-Tank Dominant Class ---------------- Mutant | -10/Materials Mutant | -10/Mines Tank | -9/Materials Scavenger-Gunner | -9/Storage Scavenger-Gunner | -9/Garrison Bothacker-Gunner | -8/Materials Bothacker-Tank | -8/Garrison Resources | -11 -10 -10 -9 -9 -9 -8 -8 ----------- Run | Yrd Mat Min Mat Sto Gar Mat Gar Matter Collected 4682 | 280 604 97 295 1041 657 808 900 Remotely . | . . . . . . . . Salvage Created 5934 | 175 625 193 280 1607 885 1533 636 Parts 363 | 13 39 15 20 108 61 70 37 Haulers Intercepted 10 | . 2 . 2 6 . . . Recyclers Shooed 10 | . 3 . 2 3 . 2 . Parts Field Recycled . | . . . . . . . . Retrieved Matter . | . . . . . . . . Parts Self-Destructed . | . . . . . . . . Prevented . | . . . . . . . . Kills | -11 -10 -10 -9 -9 -9 -8 -8 ------- Run | Yrd Mat Min Mat Sto Gar Mat Gar Combat Hostiles Destroyed 134 | . 18 6 5 27 26 26 26 Melee 3 | . . . . . . . 3 Guns 61 | . 6 . . 7 18 23 7 Cannons 57 | . 12 6 5 14 5 2 13 AOE 13 | . . . . 6 3 1 3 Classes Destroyed 15 | 3 5 . 2 . 5 . . Worker 10 | 1 2 1 . 5 . 1 . Builder 2 | . 2 . . . . . . Tunneler 4 | 4 . . . . . . . Hauler 10 | . 2 . 2 6 . . . Recycler 8 | 1 . 1 . 4 . 2 . Operator 2 | . . . 1 1 . . . Watcher 6 | . 2 . . 2 . 2 . Swarmer 40 | . 6 4 . 6 13 . 11 Grunt 48 | . 12 2 4 10 2 11 7 Brawler 3 | . . . . . 1 2 . Duelist 5 | . . . . . 3 2 . Sentry 29 | . . . 1 11 2 10 5 Specialist 1 | . . . . . 1 . . Hunter 4 | . . . . . 1 1 2 Programmer 4 | . . . . . 3 . 1 Thug 1 | . . . 1 . . . . Best Kill Streak 7 | 4 3 3 3 5 5 7 4 Combat Bots Only 5 | . 3 3 3 3 5 5 4 Max Kills in Single Turn 2 | 1 1 2 2 2 2 2 2 Gunslinging 1 | . . . . . 1 . . Exploded 2 | . . . . 2 2 1 2 Melee 1 | . . . . . . . 1 Uniques/NPCs Destroyed . | . . . . . . . . Combat | -11 -10 -10 -9 -9 -9 -8 -8 -------- Run | Yrd Mat Min Mat Sto Gar Mat Gar Hostile Shots Fired 543 | . 69 18 15 92 100 107 142 Missed 169 | . 28 7 5 30 29 34 36 Hits 374 | . 41 11 10 62 71 73 106 Melee 6 | . . . . . . 6 . Projectile 368 | . 41 11 10 62 71 67 106 Critical Strikes 10 | . . . . 1 1 3 5 Damage Taken 5072 | . 408 105 140 820 778 1302 1519 Core 618 | . 40 23 9 61 65 253 167 Absorbed by Shields . | . . . . . . . . Redirected to Shielding 10 | . . 4 2 4 . . . Regen/Repaired (Parts) 160 | . 100 . . 60 . . . Core Remaining (%) 80 | 100 . 74 . . 66 . . Volleys Fired 357 | 9 57 9 18 70 57 64 73 Largest 4 | 2 2 2 3 3 3 4 4 Hottest 160 | 90 100 60 100 121 119 160 160 Shots Fired 962 | 18 113 18 54 188 157 238 176 Gun 554 | 18 41 . 6 77 119 216 77 Cannon 369 | . 71 18 48 104 32 16 80 Launcher 15 | . . . . 7 6 . 2 Special 24 | . 1 . . . . 6 17 Kinetic 683 | . 91 18 51 133 119 136 135 Thermal 232 | 14 17 . 3 48 32 96 22 Explosive 15 | . . . . 7 6 . 2 Electromagnetic 9 | 4 5 . . . . . . Robot Hit Streak 15 | 11 9 3 9 15 14 15 11 Robot Miss Streak 5 | 1 4 2 4 4 5 4 5 Penetration Max . | . . . . . . . . Secondary Targets 9 | . . . . . 3 4 2 Max Gunslinging Chain 1 | . . . . . 1 1 1 Shots Hit Robots 562 | 15 66 8 28 108 82 144 111 Core Hits 248 | 7 31 9 12 55 42 57 35 Critical Kills 1 | . . . . 1 . . . Critical Parts Destroyed 4 | . . . . 1 1 . 2 Critical Strikes 23 | 1 2 . 2 5 1 5 7 Burn 6 | 1 . . . . . 5 . Meltdown 1 | . . . . 1 . . . Destroy 4 | . . . . 1 1 . 2 Blast 10 | . 2 . 2 3 . . 3 Sever 2 | . . . . . . . 2 Melee Attacks 24 | . . . . . 4 . 20 Impact 4 | . . . . . 4 . . Slashing 20 | . . . . . . . 20 Piercing . | . . . . . . . . Sneak Attacks 9 | . . . . . . . 9 Combat Hostiles 9 | . . . . . . . 9 Follow-up Attacks . | . . . . . . . . Damage Inflicted 11742 | 183 1169 241 505 2512 1591 2603 2938 Guns 5389 | 183 297 . 56 808 990 2170 885 Cannons 4208 | . 824 173 437 1116 298 186 1174 Explosions 1290 | . . . . 510 303 230 247 Melee 632 | . . . . . . . 632 Ramming 223 | . 48 68 12 78 . 17 . Kinetic 6906 | . 956 173 441 1369 990 1196 1781 Thermal 2588 | 133 112 . 52 555 298 1160 278 Explosive 1290 | . . . . 510 303 230 247 Electromagnetic 103 | 50 53 . . . . . . Impact . | . . . . . . . . Slashing 632 | . . . . . . . 632 Piercing . | . . . . . . . . Highest Corruption 5 | . . . . . . 5 5 Average Corruption 4 | . . . . . . 3 5 Corruption Purged . | . . . . . . . . Corruption Blocked . | . . . . . . . . Effects 61 | . . . . . . 14 47 Message Errors 16 | . . . . . . 3 13 Matter Fused 11 | . . . . . . 3 8 Heat Flow Errors 14 | . . . . . . 5 9 Energy Discharges 5 | . . . . . . 2 3 Parts Rejected 2 | . . . . . . . 2 Data Loss (minor) 8 | . . . . . . . 8 Misfires 3 | . . . . . . . 3 Alerts 1 | . . . . . . 1 . Weapon Failures 1 | . . . . . . . 1 Overload Shots . | . . . . . . . . Overflow Damage 218 | . 15 . 7 15 . 23 158 Projectiles 94 | . 15 . 7 . . . 72 Explosions 61 | . . . . 15 . 23 23 Melee 63 | . . . . . . . 63 Knockbacks 27 | . 9 3 3 3 . . 9 Impact 3 | . 1 1 . 1 . . . Kinetic 23 | . 7 2 3 2 . . 9 Secondary 1 | . 1 . . . . . . Self-Inflicted Damage 88 | . . . . . . 88 . Shots 1 | . . . . . . 1 . Rammed 19 | . 5 7 1 5 . 1 . Targets Rammed 25 | . 6 8 1 8 . 2 . Kicked . | . . . . . . . . Crushed 6 | . 1 1 . 3 . 1 . Highest Temperature 353 | 90 66 13 127 317 301 234 353 Average Temperature 65 | 31 17 8 43 62 85 42 106 Received Heat Transfer 1584 | . 138 24 57 255 30 486 594 Effects 8 | . . . . 1 4 . 3 Energy Bleed 2 | . . . . 1 1 . . Interference 6 | . . . . . 3 . 3 Siege Activations . | . . . . . . . . Martial Activations . | . . . . . . . . Shielding Activations . | . . . . . . . . Robots Disrupted . | . . . . . . . . Combat Hostiles . | . . . . . . . . Robots Corrupted . | . . . . . . . . Combat Hostiles . | . . . . . . . . Parts Fried . | . . . . . . . . Impact Corruptions . | . . . . . . . . Robots Melted 1 | . . . . 1 . . . Combat Hostiles . | . . . . . . . . Parts Melted 7 | . 2 . . . . 5 . Heat Transferred 5445 | 433 333 . 111 999 481 2590 498 Parts Sabotaged . | . . . . . . . . Parts Stolen . | . . . . . . . . Parts Stripped . | . . . . . . . . Power Chain Reactions . | . . . . . . . . Alert | -11 -10 -10 -9 -9 -9 -8 -8 ------- Run | Yrd Mat Min Mat Sto Gar Mat Gar Maximum Alert Level 4 | . . . . 1 3 2 4 Low Security (%) 57 | 100 100 100 100 81 7 5 . Level 1 16 | . . . . 18 25 59 . Level 2 13 | . . . . . 42 34 29 Level 3 9 | . . . . . 24 . 50 Level 4 2 | . . . . . . . 19 Level 5 . | . . . . . . . . High Security . | . . . . . . . . Max Security . | . . . . . . . . Peak Influence 1363 | 10 123 88 99 286 1068 684 1363 Initial 520 | . . 35 . . 169 520 443 Average 251 | 1 47 11 12 82 541 357 836 Influence Increases 4816 | 30 569 220 150 1044 909 844 1050 Destroy 0b10 Robot/C 2720 | . 360 160 100 540 520 520 520 Destroy 0b10 Robot/NC 225 | 30 40 10 15 90 15 25 . Destroy Leader 542 | . 88 40 34 186 20 154 20 Allied During Kill 10 | . . 10 . . . . . Successful Hack 103 | . 18 . . 20 32 21 12 Select Force Hacks 60 | . 30 . . 30 . . . Disable Machine 165 | . 15 . . 90 . 60 . Anti-Garrison Action 650 | . . . . . 250 . 400 Destroy Structure 221 | . 3 . 1 73 57 34 53 Partial Spotted 15 | . . . . . . 15 . Lose Combat Pursuer 105 | . 15 . . 15 15 15 45 Influence Decreases 3473 | 30 477 312 150 784 101 1230 389 Entered New Map 935 | . . 57 . . 91 548 239 Time Decay 2178 | 30 477 245 150 614 . 662 . Lost Part 90 | . . 10 . . 10 20 50 Lost Ally 120 | . . . . 20 . . 100 Purge Threat 150 | . . . . 150 . . . Squads Dispatched 14 | . 4 . 2 3 . 5 . Investigation 5 | . 2 . . 1 . 2 . Extermination . | . . . . . . . . Reinforcement 6 | . 2 . 2 2 . . . Assault . | . . . . . . . . Garrison 3 | . . . . . . 3 . Intercept . | . . . . . . . . Searches Triggered . | . . . . . . . . Construction Impeded . | . . . . . . . . Haulers Reinforced . | . . . . . . . . Active Scanning Responses . | . . . . . . . . Cargo Convoy Interrupts . | . . . . . . . . Stealth | -11 -10 -10 -9 -9 -9 -8 -8 --------- Run | Yrd Mat Min Mat Sto Gar Mat Gar Distress Signals 7 | . 1 . . 1 . 5 . Communications Jammed . | . . . . . . . . Distress Signals . | . . . . . . . . Times Spotted 182 | . 30 11 5 41 26 39 30 Peak Tracking Total 5 | . 4 3 3 4 5 5 4 Tactical Retreats 6 | . 1 . . 1 1 1 2 Traps | -11 -10 -10 -9 -9 -9 -8 -8 ------- Run | Yrd Mat Min Mat Sto Gar Mat Gar Traps Triggered 11 | . . . 1 2 . 3 5 Indirectly . | . . . . . . . . Trap Hack Attempts . | . . . . . . . . Triggered . | . . . . . . . . Disarmed . | . . . . . . . . Reprogrammed . | . . . . . . . . Reused . | . . . . . . . . Traps Extracted . | . . . . . . . . Installed . | . . . . . . . . Triggered . | . . . . . . . . Machines | -11 -10 -10 -9 -9 -9 -8 -8 ---------- Run | Yrd Mat Min Mat Sto Gar Mat Gar Machines Disabled 20 | . 1 . . 6 6 4 3 Max in Single Turn 2 | . 1 . . 1 2 1 1 Garrison Relay 5 | . . . . . 2 . 3 Phase Generator 1 | . . . . . 1 . . Machines Repaired . | . . . . . . . . Machines Dismantled . | . . . . . . . . Machines Sabotaged . | . . . . . . . . Overloaded Fab Kills . | . . . . . . . . Hacking | -11 -10 -10 -9 -9 -9 -8 -8 --------- Run | Yrd Mat Min Mat Sto Gar Mat Gar Machines Accessed 30 | . 8 . 3 8 1 9 1 Terminals 21 | . 5 . 2 6 1 6 1 Fabricators . | . . . . . . . . Repair Stations 3 | . 1 . . 1 . 1 . Recycling Units 2 | . 2 . . . . . . Scanalyzers 2 | . . . 1 . . 1 . Garrison Access 2 | . . . . 1 . 1 . Total Hacks 87 | . 26 . 9 19 2 26 5 Successful 36 | . 10 . 3 10 2 10 1 Failed 51 | . 16 . 6 9 . 16 4 Catastrophic 9 | . . . 2 1 . 4 2 Database Lockouts . | . . . . . . . . Manual 43 | . 17 . 5 4 1 13 3 Terminals 61 | . 19 . 7 13 2 15 5 Fabricators . | . . . . . . . . Repair Stations 5 | . 2 . . 2 . 1 . Recycling Units 5 | . 5 . . . . . . Scanalyzers 6 | . . . 2 . . 4 . Garrison Access 10 | . . . . 4 . 6 . Terminal Hacks 18 | . 4 . 1 5 2 5 1 Robot Schematic 1 | . 1 . . . . . . Robot Analysis 1 | . . . . . . 1 . Prototype ID Bank 5 | . 1 . . 2 . 2 . Open Door 2 | . . . . 2 . . . Emergency Access Points 1 | . . . . . 1 . . Unreport Threat 1 | . . . . 1 . . . Locate Traps 4 | . 2 . 1 . . 1 . Hauler Manifests 1 | . . . . . . 1 . Garrison Registry 1 | . . . . . 1 . . Patrol Navigation 1 | . . . . . . . 1 Fabricator Hacks . | . . . . . . . . Repair Station Hacks 4 | . 2 . . 2 . . . Scan Component 2 | . 1 . . 1 . . . Repair 2 | . 1 . . 1 . . . Recycling Unit Hacks . | . . . . . . . . Scanalyzer 4 | . . . 2 . . 2 . Insert Component 2 | . . . 1 . . 1 . Analyze 2 | . . . 1 . . 1 . Garrison Access Hacks 2 | . . . . 1 . 1 . Unlock Access 2 | . . . . 1 . 1 . Unauthorized Hacks 8 | . 4 . . 2 . 2 . Terminals 4 | . 3 . . 1 . . . Botnet 1 | . . . . 1 . . . Skim 3 | . 3 . . . . . . Fabricators . | . . . . . . . . Repair Stations 1 | . . . . . . 1 . Mechanics 1 | . . . . . . 1 . Recycling Units 1 | . 1 . . . . . . Tunnel 1 | . 1 . . . . . . Scanalyzers . | . . . . . . . . Garrison Access 2 | . . . . 1 . 1 . Reprogram 1 | . . . . . . 1 . Eject 1 | . . . . 1 . . . Data Cores Recovered 1 | . . . . 1 . . . Used . | . . . . . . . . Hacking Detections 27 | . 7 . 3 7 1 8 1 Full Trace Events 6 | . 3 . . . . 2 1 Feedback Events . | . . . . . . . . Feedback Blocked . | . . . . . . . . Robot Schematics Acquired 1 | . 1 . . . . . . Robots Built . | . . . . . . . . Authchips . | . . . . . . . . Time . | . . . . . . . . Total Robot Build Rating . | . . . . . . . . Part Schematics Acquired 2 | . . . 1 . . 1 . Parts Built . | . . . . . . . . Authchips . | . . . . . . . . Time . | . . . . . . . . Total Part Build Rating . | . . . . . . . . Parts Repaired 2 | . 1 . . 1 . . . Time 58 | . 26 . . 32 . . . Parts Recycled . | . . . . . . . . Recycled Matter . | . . . . . . . . Retrieved Matter . | . . . . . . . . Retrieved Components . | . . . . . . . . Parts Scanalyzed 2 | . . . 1 . . 1 . Part Schematics Acquired 2 | . . . 1 . . 1 . Parts Damaged 1 | . . . 1 . . . . Bothacking | -11 -10 -10 -9 -9 -9 -8 -8 ------------ Run | Yrd Mat Min Mat Sto Gar Mat Gar Used RIF Installer 2 | . . . . . 1 . 1 Alert ID Control 1 | . . . . . . . 1 Robots Hacked 8 | . . . . . . 4 4 Non-combat 4 | . . . . . . 4 . Combat 4 | . . . . . . . 4 Robot Hacks Applied 11 | . . . . . . 5 6 drop_inventory 3 | . . . . . . 3 . locate_stockpiles 1 | . . . . . . 1 . ignore_parts 1 | . . . . . . 1 . amplify_resonance 1 | . . . . . . . 1 reboot_system 4 | . . . . . . . 4 overwrite_iff 1 | . . . . . . . 1 Relay Couplers Released 24 | . . . . 3 6 . 15 Ejected 3 | . . . . 3 . . . Machine Destruction 18 | . . . . . 6 . 12 Programmers 3 | . . . . . . . 3 Attached 4 | . . . . . . 1 3 Fabnet Peak Effective % . | . . . . . . . . Robots Rewired 4 | . . . . . . . 4 Allies Hacked . | . . . . . . . . Hacks Repelled . | . . . . . . . . Allies | -11 -10 -10 -9 -9 -9 -8 -8 -------- Run | Yrd Mat Min Mat Sto Gar Mat Gar Total Allies 7 | . . 1 . . . 1 5 Largest Group 4 | . . 1 . . . 1 4 Highest-Rated Group 56 | . . 31 . . . 16 56 Highest-Rated Ally 31 | . . 31 . . . 16 16 Total Orders 4 | . . . . 4 . . . EXPLORE 4 | . . . . 4 . . . Ally Attacks 21 | . . 11 1 . . . 9 Total Damage 154 | . . 107 20 . . . 27 Kills 2 | . . 2 . . . . . Allies Corrupted . | . . . . . . . . Allies Melted . | . . . . . . . . Intel | -11 -10 -10 -9 -9 -9 -8 -8 ------- Run | Yrd Mat Min Mat Sto Gar Mat Gar Active Infowar (turns) 2291 | 92 2106 . . . 93 . . Seismic 2291 | 92 2106 . . . 93 . . Robot Analysis Total 1 | . . . . . . 1 . Derelict Logs Recovered 2 | . . 2 . . . . . Drone Launches 4 | . . . . 4 . . . Drone Recoveries 2 | . . . . 2 . . . Exploration | -11 -10 -10 -9 -9 -9 -8 -8 ------------- Run | Yrd Mat Min Mat Sto Gar Mat Gar Turns Passed 15299 | 205 2464 1871 1290 3397 1591 2508 1973 Spaces Moved 5025 | 101 893 565 437 1202 564 584 679 Core 2 | 2 . . . . . . . Treads 4985 | 99 893 565 437 1202 564 584 641 Legs . | . . . . . . . . Wheels 38 | . . . . . . . 38 Hover . | . . . . . . . . Flight . | . . . . . . . . Fastest Speed 50 | 50 160 320 240 240 240 240 225 Average Speed 249 | 157 236 320 269 240 240 240 241 Slowest Speed 320 | 160 320 320 320 320 240 243 243 Overloaded Moves . | . . . . . . . . Propulsion Burnouts . | . . . . . . . . Robots Hopped . | . . . . . . . . Potential Cave-ins . | . . . . . . . . Cave-ins Triggered . | . . . . . . . . Exploration Rate (%) 62 | 6 92 95 24 96 67 55 64 Regions Visited 7 Branch Regions 2 Pre-discovered Areas 2 | . 1 1 . . . . . Known Exits Taken 3 | . . . 1 1 . 1 . Unknown Exits Taken 3 | 1 1 1 . . . . . Scrap Searched 1 | . . 1 . . . . . Spaces Dug 24 | . 1 . . 9 . . 14 Terrain Destroyed 205 | . 1 . . 66 84 32 22 Melee 2 | . . . . . . . 2 Projectile 2 | . 1 . . . . . 1 AOE 201 | . . . . 66 84 32 19 Terrain Rammed . | . . . . . . . . Walls Destroyed . | . . . . . . . . Machines Disabled . | . . . . . . . . Actions | -11 -10 -10 -9 -9 -9 -8 -8 --------- Run | Yrd Mat Min Mat Sto Gar Mat Gar Total 6984 | 125 1123 593 514 1568 674 1543 844 Wait 1206 | . 120 6 14 210 2 827 27 Move 5019 | 100 892 564 436 1201 563 584 679 Hop . | . . . . . . . . Pick Up 103 | 8 20 3 16 15 11 19 11 Fast Attach 26 | 7 1 . 4 7 . 5 2 Attach 13 | . . 1 2 . 2 4 4 Detach . | . . . . . . . . Swap 99 | 1 15 2 8 22 20 16 15 Drop 101 | . 12 . 15 32 15 22 5 Fire 357 | 9 57 9 18 70 57 64 73 Melee 24 | . . . . . 4 . 20 Ram . | . . . . . . . . Kick . | . . . . . . . . Crush 25 | . 6 8 1 8 . 2 . Escape Stasis 8 | . . . . . . . 8 Rewire 3 | . . . . 3 . . . Trap . | . . . . . . . . Miscellaneous . | . . . . . . . . Route ------- -11/Scrapyard -10/Materials (discovered 6 exits: *Mat x3 / [*Min x2] / [*Sub]) -10/Mines (discovered 3 exits: *Mat x2 / [*Sub]) -9/Materials -9/Storage (discovered 2 exits: *Mat / Gar) -9/Garrison (discovered 3 exits: *Mat x3) -8/Materials (discovered 2 exits: [*Fac] / Gar) -8/Garrison (discovered 3 exits: [*Mat x3]) History --------- Turn | Location | Event 55 | -11/Scrapyard | Discovered new exit (range 15) 206 | -11/Scrapyard | Entered Materials 312 | -10/Materials | Discovered new exit (range 15) 317 | -10/Materials | Build established: Mutant 644 | -10/Materials | Discovered new exit (range 13) 696 | -10/Materials | Discovered new exit (range 7) 1032 | -10/Materials | Discovered new exit (range 5) 1172 | -10/Materials | Discovered new exit (range 11) 1487 | -10/Materials | Discovered new exit (range 16) 2247 | -10/Materials | Repaired Lgt. Treads 2670 | -10/Materials | Entered Mines 2683 | -10/Mines | Escorted by a lone wolf Derelict 2703 | -10/Mines | Learned location of Storage (-9) 2941 | -10/Mines | Discovered new exit (range 10) 3094 | -10/Mines | Learned 2 Materials zone layouts 3105 | -10/Mines | Received a Rocket Launcher from a helpful Derelict 3351 | -10/Mines | Found a damaged Exp. Sensor Array with a note attached 3357 | -10/Mines | Found Prototype Device 4493 | -10/Mines | Discovered new exit (range 9) 4499 | -10/Mines | Discovered new exit (range 7) 4541 | -10/Mines | Entered Materials 4541 | -9/Materials | Accompanied by 1 ally 4541 | -9/Materials | Evolved 2 slots: Propulsion x1, Weapon x1 4542 | -9/Materials | Identified exit to Storage 4828 | -9/Materials | Build established: Tank 5831 | -9/Materials | Entered Storage 5855 | -9/Storage | Identified exit to Garrison 6424 | -9/Storage | Build established: Gunner 7052 | -9/Storage | Build established: Scavenger-Gunner 7824 | -9/Storage | Repaired Hvy. Assault Rifle 8319 | -9/Storage | Discovered new exit (range 12) 9228 | -9/Storage | Entered Garrison 9301 | -9/Garrison | Build established: Gunner 9419 | -9/Garrison | Triggered checkpoint 9457 | -9/Garrison | Garrison Relay disabled 10000 | -9/Garrison | Build established: Scavenger-Gunner 10058 | -9/Garrison | Triggered checkpoint 10180 | -9/Garrison | Discovered new exit (range 8) 10192 | -9/Garrison | Triggered checkpoint 10267 | -9/Garrison | Installed Relay Interface Framework 10293 | -9/Garrison | Garrison Relay disabled 10466 | -9/Garrison | Phase Generator disabled 10685 | -9/Garrison | Discovered new exit (range 44) 10685 | -9/Garrison | Discovered new exit (range 42) 10685 | -9/Garrison | Discovered new exit (range 24) 10819 | -9/Garrison | Entered Materials 10819 | -8/Materials | Evolved 2 slots: Utility x1, Weapon x1 10971 | -8/Materials | Build established: Bothacker-Gunner 12843 | -8/Materials | Discovered new exit (range 14) 13113 | -8/Materials | Garrison activated, responded to threat 13135 | -8/Materials | Build established: Scavenger-Gunner 13302 | -8/Materials | Identified exit to Garrison 13327 | -8/Materials | Entered Garrison 13327 | -8/Garrison | Accompanied by 1 ally 13339 | -8/Garrison | Triggered checkpoint 13371 | -8/Garrison | Core integrity fell below 50% 13485 | -8/Garrison | Build established: Bothacker-Gunner 13506 | -8/Garrison | Discovered new exit (range 5) 13634 | -8/Garrison | Triggered checkpoint 13741 | -8/Garrison | Garrison Relay disabled 14179 | -8/Garrison | Triggered checkpoint 14184 | -8/Garrison | Triggered checkpoint 14215 | -8/Garrison | Lost 3 allies 14411 | -8/Garrison | Discovered new exit (range 10) 14431 | -8/Garrison | Expanded RIF knowledge: Alert ID Control 14469 | -8/Garrison | Triggered checkpoint 14482 | -8/Garrison | Build established: Gunner 14498 | -8/Garrison | Garrison Relay disabled 14681 | -8/Garrison | Triggered checkpoint 14820 | -8/Garrison | Build established: Bothacker-Tank 14975 | -8/Garrison | Discovered new exit (range 12) 15017 | -8/Garrison | Triggered checkpoint 15022 | -8/Garrison | Garrison Relay disabled 15245 | -8/Garrison | Triggered checkpoint 15300 | -8/Garrison | Self-destructed Last Messages --------------- 15075_ Acquired 4 matter. 15080_ Acquired Lgt. Treads. 15089_ Acquired Heat Sink. 15092_ Acquired 5 matter. 15113_ System corrupted: Matter fused (-10). 15127_ ALERT: Garrison interior compromised. 15129_ System corrupted: Heat flow error (+122). 15152_ System corrupted: Matter fused (-7). 15210_ Acquired 12 matter. 15213_ YUPW|ZKO5LXYSG,5GNZBHUJ,CRGPR4FL 15245_ Beams of light sweep through the air. An alarm sounds. 15255_ Imp. Treads destroyed. 15257_ Critical hit (Burn: +37). 15264_ System corrupted: Deuterium Engine rejected. 15265_ Acquired Deuterium Engine. 15273_ Acquired 6 matter. 15295_ Acquired 2 matter. 15298_ Acquired 8 matter. 15298_ Minigun destroyed. 15299_ System corrupted: Heat flow error (+134). Map ----- +----------------------------------------------------+ | ?????????????????????????# #????####?????????# # | | ?????????????????????????# #?????????????????# # | | ?????????????????????????# #?????????????????# # | | ?????????????????????????# #?????????????????# # | | ?????????????????????????# #?????????????????# # | | ?????????????????????????# #?????????????????# # | | ?????????????????????????# #?????????????????# # | | ?????????????????????????#"#################### # | | ?????????????????????????# # | | ?????????????????????????# # | | ?????????????????????????# ###################### | | ?????????????????????????# !#????????????????????? | | ?????????????????????????# #????????????????????? | | ?????????????????????????#!!#????????????????????? | | ???????????????# ???????# !#????????????????????? | | ???????????????# ######## #????????????????????? | | ???????????????# ## ## #????????????????????? | | ??????????????## ## ## ##????????? #????????? | | ?????????###### % [ ######## ######???? | | ???????? #??? | | ???????? % #??? | | ???????????#### *!## ##g ############# ##??? | | ??????????????# [%## g##^^ ###?????????????????? | | ??????????????" !! [ #?????????????????? | | ??????????????" #?????????????????? | | ??????????????" @ #?????????????????? | | ??????????????" ** #?????????????????? | | ??????????????# ## ## = ###?????????????????? | | ############### ## ## *#############???????? | | = %^^ %[%% % "#???????? | | ##### * ^ *=!// ##???????? | | ????#= ######## = [= = #????????? | | ????# #??????## ## * ###;######### #????????? | | ????# #???????# ##* #? #???????# #????????? | | ????# #???????# #######? #???????# #????????? | | ##### #???????# #??????# #???????# #????????? | | # # #???????# #??????# #???????# ^ #????????? | | # #???????# #??????# #???????# #????????? | | # ######### #??????# #???????# #????????? | | [ #??????# ????????# #????????? | | =* #??????# ?????????# #????????? | | ## # ##########"##??????##?????????# #????????? | | ##### ????????# #??????????????????# #????????? | | ##??# #????????# #??????????????????# #????????? | | ????# #????????# #??????????????????# #????????? | | ????# ###+#????# #??????????????????# #????????? | | ????# #????# #??????????????????# #????????? | | ????##### #????# #??????????????????# #????????? | | ????????# #????# #??????????????????# #????????? | | ####????# #????# #??????????????????# ########## | +----------------------------------------------------+ Best States ------------- Heat Dissipation 53 Energy Generation 16 Energy Capacity 290 Matter Stores 300 Matter Capacity 300 Sight Range 16 Terrain Scan Density 10 Armor Coverage 225 Core Shielding 20 Evasion (%) 40 Recoil Reduction 3 Offensive Hacking 10 Relay Coupler Types 1 Relay Coupler Value 24 Item Schematics ----------------- Cryofiber Web | -9/Materials | Scanalyzed Gatling Laser | -8/Materials | Scanalyzed Robot Schematics ------------------ M-13 Machinist | -10/Materials | Hacked Fabricated ------------ Nothing Repaired ---------- Lgt. Treads | 28% | -10/Materials Hvy. Assault Rifle | 47% | -9/Storage Alien Tech Used ----------------- None Achievements -------------- None Challenges ------------ None Game ------ Seed PlatingTerrabombShifter Manual? 0 Play Time 01:07:50 Cumulative 973.7 hours Start 2025.06.27 @ 00:52:32 End 2025.06.27 @ 02:02:16 Sessions 1 Manual Loads 0 Difficulty Rogue Special Mode None Game No. 503 Rogue 503 Adventurer 0 Explorer 0 Win Type - Total 23 Types 10/4/3/0/1/1/2/2/0/0 Lore% 85 Gallery% 87 Achievement% 83 Wizard Run 0 Options --------- Layout 0 ASCII 0 Keyboard 0 Movement Numpad Keybinds 0 Fullscreen 2 Font 24/Smallcaps Map View 76x50 Zoom Use 0% Tactical HUD 1 Map Filters NONE Filters SHIFT_HUE(315) Steam 1 RUN: 453d98fb-c783-4eb9-b77f-b5eea375d03f